[Event "*** Titled Tuesday Blitz"]
[Site "Chess.com"]
[Date "2019.03.05"]
[Round "4"]
[White "GMKrikor"]
[Black "jocmil"]
[Result "1-0"]
[WhiteElo "2723"]
[BlackElo "2425"]
[TimeControl "180+2"]
[EndTime "13:59:35 PST"]
[Termination "GMKrikor won by checkmate"]

1. Nf3 {[%clk 0:03:01.9]} 1... Nf6 {[%clk 0:02:59.4]} 2. c4 {[%clk 0:03:02.5]}
2... c6 {[%clk 0:02:59.4]} 3. d4 {[%clk 0:02:59.4]} 3... d5 {[%clk 0:03:00.8]}
4. e3 {[%clk 0:02:58.6]} 4... a6 {[%clk 0:03:00.2]} 5. Bd3 {[%clk 0:02:51.1]}
5... e6 {[%clk 0:02:54.3]} 6. O-O {[%clk 0:02:50.2]} 6... Bd6 {[%clk 0:02:54.6]}
7. Nbd2 {[%clk 0:02:40.4]} 7... Nbd7 {[%clk 0:02:55.2]} 8. e4 {[%clk 0:02:41.3]}
8... dxe4 {[%clk 0:02:55.7]} 9. Nxe4 {[%clk 0:02:41.9]} 9... Nxe4 {[%clk
0:02:57.2]} 10. Bxe4 {[%clk 0:02:42.9]} 10... Qc7 {[%clk 0:02:52.1]} 11. Re1
{[%clk 0:02:16.7]} 11... Nf6 {[%clk 0:02:34.6]} 12. Bc2 {[%clk 0:02:15.7]} 12...
c5 {[%clk 0:02:22.5]} 13. d5 {[%clk 0:02:11.9]} 13... O-O {[%clk 0:02:14.3]} 14.
Bg5 {[%clk 0:02:02.3]} 14... exd5 {[%clk 0:02:14.1]} 15. Bxf6 {[%clk 0:02:00.8]}
15... gxf6 {[%clk 0:02:16]} 16. Qxd5 {[%clk 0:01:49.8]} 16... Kg7 {[%clk
0:02:11.5]} 17. Rad1 {[%clk 0:01:41.5]} 17... Bf4 {[%clk 0:02:10.1]} 18. Qh5
{[%clk 0:01:37]} 18... Rh8 {[%clk 0:01:58.5]} 19. g3 {[%clk 0:01:27]} 19... Bh6
{[%clk 0:01:55.2]} 20. Nh4 {[%clk 0:00:50.8]} 20... Be6 {[%clk 0:01:44]} 21.
Nf5+ {[%clk 0:00:43]} 21... Bxf5 {[%clk 0:01:44.5]} 22. Qxf5 {[%clk 0:00:44.9]}
22... Rad8 {[%clk 0:01:40.4]} 23. Rxd8 {[%clk 0:00:38.4]} 23... Qxd8 {[%clk
0:01:42.3]} 24. Rd1 {[%clk 0:00:35.7]} 24... Qe7 {[%clk 0:01:31.6]} 25. Qg4+
{[%clk 0:00:35.1]} 25... Bg5 {[%clk 0:01:32.4]} 26. h4 {[%clk 0:00:28]} 26... h5
{[%clk 0:01:33.2]} 27. Qd7 {[%clk 0:00:26.3]} 27... Qxd7 {[%clk 0:01:27.6]} 28.
Rxd7 {[%clk 0:00:28.2]} 28... Bc1 {[%clk 0:01:25.5]} 29. Rxb7 {[%clk 0:00:28.2]}
29... Rd8 {[%clk 0:01:27]} 30. Be4 {[%clk 0:00:28.8]} 30... Rd2 {[%clk
0:01:25.9]} 31. b3 {[%clk 0:00:22]} 31... Bb2 {[%clk 0:01:20.9]} 32. Bd5 {[%clk
0:00:23]} 32... Bd4 {[%clk 0:01:21.6]} 33. Rxf7+ {[%clk 0:00:24.2]} 33... Kg6
{[%clk 0:01:22.9]} 34. Rd7 {[%clk 0:00:20.9]} 34... Bxf2+ {[%clk 0:01:20]} 35.
Kg2 {[%clk 0:00:21.7]} 35... Bd4+ {[%clk 0:01:21]} 36. Kf1 {[%clk 0:00:17.2]}
36... Rf2+ {[%clk 0:01:20.8]} 37. Ke1 {[%clk 0:00:18.1]} 37... Rxa2 {[%clk
0:01:21.6]} 38. Be4+ {[%clk 0:00:17.4]} 38... f5 {[%clk 0:01:22.9]} 39. Rd6+
{[%clk 0:00:18.9]} 39... Kg7 {[%clk 0:01:16.3]} 40. Bxf5 {[%clk 0:00:20.2]}
40... a5 {[%clk 0:01:08.2]} 41. Kd1 {[%clk 0:00:16.7]} 41... a4 {[%clk
0:00:52.5]} 42. bxa4 {[%clk 0:00:17]} 42... Rxa4 {[%clk 0:00:54.4]} 43. Rg6+
{[%clk 0:00:15.8]} 43... Kf7 {[%clk 0:00:55.3]} 44. Rg5 {[%clk 0:00:17.1]} 44...
Rxc4 {[%clk 0:00:55.8]} 45. Rxh5 {[%clk 0:00:18.6]} 45... Rc3 {[%clk 0:00:57]}
46. g4 {[%clk 0:00:18.7]} 46... Re3 {[%clk 0:00:52.2]} 47. Rh7+ {[%clk 0:00:16]}
47... Bg7 {[%clk 0:00:49.5]} 48. h5 {[%clk 0:00:14]} 48... Rh3 {[%clk
0:00:42.7]} 49. g5 {[%clk 0:00:13]} 49... Rh1+ {[%clk 0:00:43.5]} 50. Kc2 {[%clk
0:00:11.4]} 50... Kg8 {[%clk 0:00:37.9]} 51. h6 {[%clk 0:00:12.8]} 51... Bf8
{[%clk 0:00:18.7]} 52. Rd7 {[%clk 0:00:12]} 52... Bxh6 {[%clk 0:00:17.2]} 53.
gxh6 {[%clk 0:00:10.8]} 53... Rxh6 {[%clk 0:00:19.1]} 54. Bd3 {[%clk 0:00:08.4]}
54... Kf8 {[%clk 0:00:19.8]} 55. Kc3 {[%clk 0:00:09.3]} 55... Rh4 {[%clk
0:00:21.2]} 56. Rd5 {[%clk 0:00:08.7]} 56... Ke7 {[%clk 0:00:21.1]} 57. Rxc5
{[%clk 0:00:09.6]} 57... Kd6 {[%clk 0:00:22.7]} 58. Ra5 {[%clk 0:00:10.5]} 58...
Ke6 {[%clk 0:00:23.2]} 59. Kd2 {[%clk 0:00:07.8]} 59... Kd6 {[%clk 0:00:24.2]}
60. Ke3 {[%clk 0:00:08.4]} 60... Ke6 {[%clk 0:00:24.5]} 61. Be4 {[%clk
0:00:09.7]} 61... Kd6 {[%clk 0:00:24.8]} 62. Kd4 {[%clk 0:00:10.9]} 62... Rh2
{[%clk 0:00:25.4]} 63. Ra6+ {[%clk 0:00:11.9]} 63... Ke7 {[%clk 0:00:25.9]} 64.
Ke5 {[%clk 0:00:12.5]} 64... Re2 {[%clk 0:00:24.4]} 65. Ra7+ {[%clk 0:00:12.9]}
65... Ke8 {[%clk 0:00:24.6]} 66. Kd5 {[%clk 0:00:12.2]} 66... Kf8 {[%clk
0:00:23]} 67. Bf5 {[%clk 0:00:11.6]} 67... Kg8 {[%clk 0:00:23.8]} 68. Kd6 {[%clk
0:00:12.3]} 68... Kh8 {[%clk 0:00:23.6]} 69. Be6 {[%clk 0:00:08.9]} 69... Rd2+
{[%clk 0:00:24]} 70. Ke5 {[%clk 0:00:05.4]} 70... Re2+ {[%clk 0:00:24.4]} 71.
Kf6 {[%clk 0:00:06.5]} 71... Rf2+ {[%clk 0:00:09.7]} 72. Bf5 {[%clk 0:00:07.5]}
72... Rg2 {[%clk 0:00:10.7]} 73. Ra4 {[%clk 0:00:04.4]} 73... Rg3 {[%clk
0:00:05.1]} 74. Rh4+ {[%clk 0:00:05]} 74... Kg8 {[%clk 0:00:06.1]} 75. Be6+
{[%clk 0:00:06.6]} 75... Kf8 {[%clk 0:00:07.1]} 76. Rh8+ {[%clk 0:00:08.3]}
76... Rg8 {[%clk 0:00:08.7]} 77. Rxg8# {[%clk 0:00:10.2]} 1-0

[Event "*** Titled Tuesday Blitz"]
[Site "Chess.com"]
[Date "2019.03.05"]
[Round "4"]
[White "jbj"]
[Black "Annawel"]
[Result "1/2-1/2"]
[WhiteElo "2591"]
[BlackElo "2896"]
[TimeControl "180+2"]
[EndTime "14:00:22 PST"]
[Termination "Game drawn by agreement"]

1. e4 {[%clk 0:03:01.9]} 1... c5 {[%clk 0:03:01.4]} 2. d4 {[%clk 0:03:02.9]}
2... cxd4 {[%clk 0:03:02.6]} 3. c3 {[%clk 0:03:04.4]} 3... d3 {[%clk 0:03:04.3]}
4. Bxd3 {[%clk 0:03:04.9]} 4... d6 {[%clk 0:03:05.8]} 5. c4 {[%clk 0:03:06.3]}
5... g6 {[%clk 0:03:06.9]} 6. h3 {[%clk 0:03:07.3]} 6... Nf6 {[%clk 0:03:06.8]}
7. Nf3 {[%clk 0:03:08.3]} 7... Bg7 {[%clk 0:03:08.5]} 8. O-O {[%clk 0:03:09.4]}
8... O-O {[%clk 0:03:10.1]} 9. Nc3 {[%clk 0:03:10.8]} 9... Nc6 {[%clk
0:03:11.4]} 10. Be3 {[%clk 0:03:12]} 10... Nd7 {[%clk 0:03:07.2]} 11. Rc1 {[%clk
0:03:12.9]} 11... Nc5 {[%clk 0:03:08.2]} 12. Bb1 {[%clk 0:03:13.9]} 12... Be6
{[%clk 0:03:09.3]} 13. b3 {[%clk 0:03:15]} 13... a5 {[%clk 0:03:06.7]} 14. Nd4
{[%clk 0:03:15.4]} 14... a4 {[%clk 0:02:49.9]} 15. Nxe6 {[%clk 0:03:12]} 15...
fxe6 {[%clk 0:02:35.4]} 16. Bxc5 {[%clk 0:03:03.8]} 16... axb3 {[%clk
0:02:09.1]} 17. Be3 {[%clk 0:02:54.6]} 17... Bxc3 {[%clk 0:02:07.1]} 18. Qxb3
{[%clk 0:02:49.6]} 18... Bg7 {[%clk 0:01:41.7]} 19. c5 {[%clk 0:02:47]} 19...
dxc5 {[%clk 0:01:41.9]} 20. Qxe6+ {[%clk 0:02:47.2]} 20... Kh8 {[%clk
0:01:43.5]} 21. Bxc5 {[%clk 0:02:45.9]} 21... Nd4 {[%clk 0:01:34.7]} 22. Bxd4
{[%clk 0:02:40.2]} 22... Bxd4 {[%clk 0:01:34.7]} 23. Qb3 {[%clk 0:02:25.6]}
23... Qd6 {[%clk 0:01:27.8]} 24. Rcd1 {[%clk 0:02:23.2]} 24... e5 {[%clk
0:00:55.3]} 25. Qxb7 {[%clk 0:02:22]} 25... Rab8 {[%clk 0:00:48]} 26. Qd5 {[%clk
0:02:21.1]} 26... Qf6 {[%clk 0:00:48.7]} 27. Kh1 {[%clk 0:02:16.4]} 27... Rb2
{[%clk 0:00:44.6]} 28. f4 {[%clk 0:02:14.7]} 28... Qa6 {[%clk 0:00:25.3]} 29.
Bd3 {[%clk 0:02:02.3]} 29... Qxa2 {[%clk 0:00:26.3]} 30. Qxa2 {[%clk 0:01:51.3]}
30... Rxa2 {[%clk 0:00:27.6]} 31. fxe5 {[%clk 0:01:51.8]} 31... Rxf1+ {[%clk
0:00:29]} 32. Rxf1 {[%clk 0:01:41]} 32... Bxe5 {[%clk 0:00:30.9]} 33. Bc4 {[%clk
0:01:38.8]} 33... Rc2 {[%clk 0:00:28.3]} 34. Bd5 {[%clk 0:01:37.3]} 34... h5
{[%clk 0:00:24.9]} 35. h4 {[%clk 0:01:25.7]} 35... Bg3 {[%clk 0:00:23.3]} 36. e5
{[%clk 0:01:18.8]} 36... Bxe5 {[%clk 0:00:22.7]} 37. Kg1 {[%clk 0:00:44.4]}
37... Kg7 {[%clk 0:00:14.9]} 38. Rf7+ {[%clk 0:00:42.4]} 38... Kh6 {[%clk
0:00:16.4]} 39. Kf1 {[%clk 0:00:43.2]} 39... Bg3 {[%clk 0:00:15.3]} 40. Be4
{[%clk 0:00:41.1]} 40... Rc1+ {[%clk 0:00:14.6]} 41. Ke2 {[%clk 0:00:42.2]}
41... Re1+ {[%clk 0:00:14.4]} 42. Kd3 {[%clk 0:00:37.2]} 42... Bxh4 {[%clk
0:00:15.8]} 43. Ra7 {[%clk 0:00:29]} 43... Rd1+ {[%clk 0:00:15.5]} 44. Ke2
{[%clk 0:00:29.2]} 44... Re1+ {[%clk 0:00:17.4]} 45. Kd3 {[%clk 0:00:29.1]}
45... Rf1 {[%clk 0:00:17.9]} 46. Ra6 {[%clk 0:00:29.1]} 46... Bf6 {[%clk
0:00:19.1]} 47. Bf3 {[%clk 0:00:28.8]} 47... Kg5 {[%clk 0:00:19.8]} 48. Ra5+
{[%clk 0:00:27]} 48... Kf4 {[%clk 0:00:19.9]} 49. Ke2 {[%clk 0:00:25.2]} 49...
Rb1 {[%clk 0:00:19.2]} 50. Ra6 {[%clk 0:00:24.2]} 50... Rb2+ {[%clk 0:00:20.7]}
51. Kd3 {[%clk 0:00:25.4]} 51... Ke5 {[%clk 0:00:19.3]} 52. Ra5+ {[%clk
0:00:25.7]} 52... Ke6 {[%clk 0:00:20.5]} 53. Ra6+ {[%clk 0:00:26.5]} 53... Kf7
{[%clk 0:00:22]} 54. Bd5+ {[%clk 0:00:24.2]} 54... Kg7 {[%clk 0:00:22.2]} 55.
Ra7+ {[%clk 0:00:23.7]} 55... Kh6 {[%clk 0:00:23.1]} 56. Ra6 {[%clk 0:00:24]}
56... Bd8 {[%clk 0:00:20]} 57. Be4 {[%clk 0:00:23.3]} 57... Bb6 {[%clk
0:00:09.3]} 58. Kc3 {[%clk 0:00:23.4]} 58... Rb5 {[%clk 0:00:10.8]} 59. Bd3
{[%clk 0:00:20.8]} 59... Rc5+ {[%clk 0:00:06.6]} 60. Kb4 {[%clk 0:00:21.1]}
60... Rd5 {[%clk 0:00:06.7]} 61. Kc4 {[%clk 0:00:10]} 61... Rd4+ {[%clk
0:00:07.1]} 62. Kc3 {[%clk 0:00:10.7]} 62... Rd6 {[%clk 0:00:08.7]} 63. Kc2
{[%clk 0:00:11.2]} 63... Kg5 {[%clk 0:00:09.2]} 64. Ra4 {[%clk 0:00:10]} 64...
Bd4 {[%clk 0:00:09.3]} 65. Kd2 {[%clk 0:00:08.9]} 65... h4 {[%clk 0:00:05.1]}
66. Ke2 {[%clk 0:00:09.4]} 66... Re6+ {[%clk 0:00:05.3]} 67. Kf1 {[%clk
0:00:10.5]} 67... Rf6+ {[%clk 0:00:06.3]} 68. Ke1 {[%clk 0:00:11.5]} 68... Be3
{[%clk 0:00:05.6]} 69. Re4 {[%clk 0:00:10.9]} 69... Bf2+ {[%clk 0:00:06.1]} 70.
Ke2 {[%clk 0:00:11.6]} 70... Bg3 {[%clk 0:00:08]} 71. Kd1 {[%clk 0:00:09.2]}
71... Rd6 {[%clk 0:00:07.9]} 72. Ke2 {[%clk 0:00:08.8]} 72... Rb6 {[%clk
0:00:08.1]} 73. Re8 {[%clk 0:00:08.2]} 73... Rb2+ {[%clk 0:00:08.6]} 74. Kf1
{[%clk 0:00:08.4]} 74... Rd2 {[%clk 0:00:09]} 75. Be2 {[%clk 0:00:07]} 75... Rc2
{[%clk 0:00:09.4]} 76. Rd8 {[%clk 0:00:05.3]} 76... Rc5 {[%clk 0:00:07.3]} 77.
Rd1 {[%clk 0:00:05.8]} 77... Kf4 {[%clk 0:00:06.1]} 78. Bf3 {[%clk 0:00:06.7]}
78... g5 {[%clk 0:00:07.3]} 79. Rd4+ {[%clk 0:00:06.6]} 79... Kf5 {[%clk
0:00:08]} 80. Rd5+ {[%clk 0:00:07.4]} 80... Rxd5 {[%clk 0:00:08.5]} 81. Bxd5
{[%clk 0:00:09.3]} 81... Kf4 {[%clk 0:00:10.3]} 82. Bc6 {[%clk 0:00:09.6]} 82...
Ke3 {[%clk 0:00:11.5]} 83. Kg1 {[%clk 0:00:10.6]} 83... Be5 {[%clk 0:00:13.4]}
84. Kh1 {[%clk 0:00:11.6]} 84... Kf2 {[%clk 0:00:15.3]} 85. Bb7 {[%clk
0:00:12.6]} 85... g4 {[%clk 0:00:16.8]} 86. Bc6 {[%clk 0:00:13.3]} 86... g3
{[%clk 0:00:17]} 87. Bb7 {[%clk 0:00:13.8]} 87... Bd4 {[%clk 0:00:18.4]} 88. Bc6
{[%clk 0:00:14.5]} 88... Kf1 {[%clk 0:00:20.2]} 89. Bd5 {[%clk 0:00:15.3]} 89...
Bg1 {[%clk 0:00:22.1]} 90. Bc6 {[%clk 0:00:15.8]} 90... Bh2 {[%clk 0:00:24]}
1/2-1/2

[Event "*** Titled Tuesday Blitz"]
[Site "Chess.com"]
[Date "2019.03.05"]
[Round "4"]
[White "SaraciNderim"]
[Black "Hongjin"]
[Result "1-0"]
[WhiteElo "2731"]
[BlackElo "2515"]
[TimeControl "180+2"]
[EndTime "14:01:14 PST"]
[Termination "SaraciNderim won by checkmate"]

1. d4 {[%clk 0:03:00.2]} 1... Nf6 {[%clk 0:03:00.8]} 2. Nf3 {[%clk 0:03:00.9]}
2... e6 {[%clk 0:03:00.1]} 3. c4 {[%clk 0:03:01.9]} 3... Bb4+ {[%clk 0:02:57.4]}
4. Bd2 {[%clk 0:03:03]} 4... Bxd2+ {[%clk 0:02:54.7]} 5. Nbxd2 {[%clk
0:03:03.7]} 5... O-O {[%clk 0:02:54]} 6. g3 {[%clk 0:03:01.6]} 6... d5 {[%clk
0:02:54.8]} 7. Bg2 {[%clk 0:03:02.5]} 7... Nbd7 {[%clk 0:02:54]} 8. O-O {[%clk
0:03:02.1]} 8... c6 {[%clk 0:02:54.3]} 9. Qc2 {[%clk 0:03:00.4]} 9... Qe7 {[%clk
0:02:55.2]} 10. e4 {[%clk 0:03:00.8]} 10... dxe4 {[%clk 0:02:53.3]} 11. Nxe4
{[%clk 0:03:02.7]} 11... Nxe4 {[%clk 0:02:54.1]} 12. Qxe4 {[%clk 0:03:04.6]}
12... Nf6 {[%clk 0:02:48.8]} 13. Qc2 {[%clk 0:03:05.4]} 13... Bd7 {[%clk
0:02:47.8]} 14. Rfe1 {[%clk 0:03:03.5]} 14... Rab8 {[%clk 0:02:33.8]} 15. Ne5
{[%clk 0:03:03.5]} 15... Rfd8 {[%clk 0:02:30.2]} 16. d5 {[%clk 0:02:35.7]} 16...
cxd5 {[%clk 0:02:09.8]} 17. cxd5 {[%clk 0:02:35.6]} 17... Nxd5 {[%clk
0:02:02.8]} 18. Bxd5 {[%clk 0:02:30.8]} 18... exd5 {[%clk 0:02:04.7]} 19. Nc6
{[%clk 0:02:08.8]} 19... Qxe1+ {[%clk 0:02:04.7]} 20. Rxe1 {[%clk 0:02:10.7]}
20... Bxc6 {[%clk 0:01:49.9]} 21. f3 {[%clk 0:02:09.8]} 21... d4 {[%clk
0:01:41.7]} 22. Qd3 {[%clk 0:02:08.3]} 22... Rd7 {[%clk 0:01:38.1]} 23. b3
{[%clk 0:02:06.4]} 23... h6 {[%clk 0:01:34.6]} 24. Kf2 {[%clk 0:02:07.2]} 24...
a6 {[%clk 0:01:34.6]} 25. a4 {[%clk 0:02:08]} 25... Rbd8 {[%clk 0:01:18.9]} 26.
h4 {[%clk 0:02:08.1]} 26... Rd5 {[%clk 0:01:17.9]} 27. g4 {[%clk 0:02:08]} 27...
Rc5 {[%clk 0:01:14.2]} 28. Rd1 {[%clk 0:02:09.1]} 28... Rd7 {[%clk 0:01:08.4]}
29. Qe2 {[%clk 0:01:44.3]} 29... Rc3 {[%clk 0:00:51.3]} 30. Rd3 {[%clk
0:01:43.7]} 30... Rxd3 {[%clk 0:00:46.3]} 31. Qxd3 {[%clk 0:01:44.3]} 31... Rd6
{[%clk 0:00:44.9]} 32. Kg3 {[%clk 0:01:42.2]} 32... g6 {[%clk 0:00:41.7]} 33. g5
{[%clk 0:01:43]} 33... hxg5 {[%clk 0:00:26.7]} 34. hxg5 {[%clk 0:01:44.9]} 34...
Rd5 {[%clk 0:00:27.9]} 35. f4 {[%clk 0:01:45.7]} 35... Kg7 {[%clk 0:00:25.3]}
36. Kf2 {[%clk 0:01:46.6]} 36... Rd6 {[%clk 0:00:26.3]} 37. Ke1 {[%clk 0:01:38]}
37... Kf8 {[%clk 0:00:26.4]} 38. Kd2 {[%clk 0:01:39]} 38... Ke7 {[%clk
0:00:25.9]} 39. Qc4 {[%clk 0:01:38.2]} 39... Re6 {[%clk 0:00:21.4]} 40. Qc5+
{[%clk 0:01:38]} 40... Kd7 {[%clk 0:00:19.7]} 41. Qf8 {[%clk 0:01:38.2]} 41...
Re7 {[%clk 0:00:17]} 42. Kd3 {[%clk 0:01:39.4]} 42... Bd5 {[%clk 0:00:15.8]} 43.
b4 {[%clk 0:01:38.6]} 43... Bc6 {[%clk 0:00:15.2]} 44. a5 {[%clk 0:01:39.8]}
44... Ke6 {[%clk 0:00:13.7]} 45. Kxd4 {[%clk 0:01:39.8]} 45... Rd7+ {[%clk
0:00:15.1]} 46. Ke3 {[%clk 0:01:40.9]} 46... Kf5 {[%clk 0:00:11.4]} 47. Qc5+
{[%clk 0:01:41.8]} 47... Rd5 {[%clk 0:00:11.5]} 48. Qe7 {[%clk 0:01:40.4]} 48...
Rd7 {[%clk 0:00:09.3]} 49. Qf6+ {[%clk 0:01:41.4]} 49... Kg4 {[%clk 0:00:10.6]}
50. Ke2 {[%clk 0:01:36.3]} 50... Bb5+ {[%clk 0:00:10.4]} 51. Kf2 {[%clk
0:01:36.9]} 51... Rd2+ {[%clk 0:00:08.4]} 52. Ke1 {[%clk 0:01:38.2]} 52... Rd7
{[%clk 0:00:06.6]} 53. Qe5 {[%clk 0:01:38.5]} 53... Kf3 {[%clk 0:00:04.4]} 54.
f5 {[%clk 0:01:38]} 54... gxf5 {[%clk 0:00:03.9]} 55. Qxf5+ {[%clk 0:01:39]}
55... Ke3 {[%clk 0:00:05.6]} 56. Qc5+ {[%clk 0:01:35.2]} 56... Kf4 {[%clk
0:00:06.1]} 57. Kf2 {[%clk 0:01:31.5]} 57... Rd2+ {[%clk 0:00:07.2]} 58. Kg1
{[%clk 0:01:29.3]} 58... Rd1+ {[%clk 0:00:07.7]} 59. Kf2 {[%clk 0:01:30.6]}
59... Rd2+ {[%clk 0:00:09]} 60. Ke1 {[%clk 0:01:31.9]} 60... Rd7 {[%clk
0:00:09.4]} 61. Qg1 {[%clk 0:01:29.8]} 61... Kf5 {[%clk 0:00:09.9]} 62. Qg3
{[%clk 0:01:28.9]} 62... Kg6 {[%clk 0:00:10.5]} 63. Qf4 {[%clk 0:01:29.6]} 63...
Kg7 {[%clk 0:00:11.1]} 64. Qf6+ {[%clk 0:01:30.2]} 64... Kg8 {[%clk 0:00:12.7]}
65. Kf2 {[%clk 0:01:31.7]} 65... Rd2+ {[%clk 0:00:12.3]} 66. Ke3 {[%clk
0:01:33.1]} 66... Rd3+ {[%clk 0:00:13.3]} 67. Ke4 {[%clk 0:01:34.4]} 67... Rd7
{[%clk 0:00:14.6]} 68. Ke5 {[%clk 0:01:35.7]} 68... Rd1 {[%clk 0:00:14.2]} 69.
Qf3 {[%clk 0:01:31]} 69... Rd7 {[%clk 0:00:14.7]} 70. Qc3 {[%clk 0:01:30.5]}
70... Bc6 {[%clk 0:00:14.1]} 71. Kf6 {[%clk 0:01:29.7]} 71... Rd6+ {[%clk
0:00:14.9]} 72. Ke7 {[%clk 0:01:29]} 72... Re6+ {[%clk 0:00:16]} 73. Kd8 {[%clk
0:01:30.4]} 73... Re8+ {[%clk 0:00:16.2]} 74. Kc7 {[%clk 0:01:31.2]} 74... Re7+
{[%clk 0:00:17.7]} 75. Kb6 {[%clk 0:01:32.2]} 75... Re6 {[%clk 0:00:19.3]} 76.
Ka7 {[%clk 0:01:33.5]} 76... Rg6 {[%clk 0:00:19.2]} 77. Qe5 {[%clk 0:01:33.6]}
77... Re6 {[%clk 0:00:17.7]} 78. Qf4 {[%clk 0:01:34.7]} 78... Rg6 {[%clk
0:00:18.8]} 79. Kb8 {[%clk 0:01:32.3]} 79... Re6 {[%clk 0:00:20]} 80. Kc7 {[%clk
0:01:33.7]} 80... Rg6 {[%clk 0:00:21.1]} 81. Kd8 {[%clk 0:01:34.5]} 81... Re6
{[%clk 0:00:22.1]} 82. Kc7 {[%clk 0:01:28.6]} 82... Rg6 {[%clk 0:00:23]} 83. Qd2
{[%clk 0:01:29.3]} 83... Re6 {[%clk 0:00:23.4]} 84. Qd8+ {[%clk 0:01:30.2]}
84... Kg7 {[%clk 0:00:24.7]} 85. Kb6 {[%clk 0:01:27.1]} 85... Rg6 {[%clk
0:00:23.5]} 86. Qd4+ {[%clk 0:01:27.1]} 86... Kg8 {[%clk 0:00:24.3]} 87. b5
{[%clk 0:01:23]} 87... axb5 {[%clk 0:00:08.7]} 88. Kc7 {[%clk 0:01:20.4]} 88...
Re6 {[%clk 0:00:08.1]} 89. Qg4 {[%clk 0:01:16.6]} 89... Rg6 {[%clk 0:00:08.4]}
90. Qc8+ {[%clk 0:01:12.4]} 90... Kg7 {[%clk 0:00:09.3]} 91. Qg4 {[%clk
0:01:06.9]} 91... Kg8 {[%clk 0:00:09.7]} 92. Qf4 {[%clk 0:01:08]} 92... Kg7
{[%clk 0:00:10.9]} 93. Kb6 {[%clk 0:01:09.3]} 93... Kg8 {[%clk 0:00:11.1]} 94.
Kc5 {[%clk 0:01:10.6]} 94... Kg7 {[%clk 0:00:12.2]} 95. Kd4 {[%clk 0:01:05.6]}
95... Kg8 {[%clk 0:00:13.2]} 96. Qf5 {[%clk 0:01:04.9]} 96... Kg7 {[%clk
0:00:12.8]} 97. Ke5 {[%clk 0:01:05.5]} 97... Re6+ {[%clk 0:00:11.7]} 98. Kf4
{[%clk 0:01:04.2]} 98... Rg6 {[%clk 0:00:10.4]} 99. Qe5+ {[%clk 0:01:05]} 99...
Kg8 {[%clk 0:00:11.3]} 100. Qc7 {[%clk 0:01:06.1]} 100... Re6 {[%clk 0:00:11.8]}
101. Qb6 {[%clk 0:01:06.6]} 101... Kg7 {[%clk 0:00:10.6]} 102. a6 {[%clk
0:01:07.7]} 102... bxa6 {[%clk 0:00:10.2]} 103. Qxa6 {[%clk 0:01:09.1]} 103...
Re4+ {[%clk 0:00:07.1]} 104. Kg3 {[%clk 0:01:05.4]} 104... Re6 {[%clk
0:00:07.7]} 105. Qb6 {[%clk 0:01:05.9]} 105... Kg6 {[%clk 0:00:07.8]} 106. Qd8
{[%clk 0:01:06.9]} 106... Kf5 {[%clk 0:00:05.9]} 107. Kf2 {[%clk 0:01:06.5]}
107... Kg6 {[%clk 0:00:06.3]} 108. Qg8+ {[%clk 0:01:06.7]} 108... Kf5 {[%clk
0:00:07.2]} 109. Qxf7+ {[%clk 0:01:07.3]} 109... Ke5 {[%clk 0:00:08.9]} 110. Kg3
{[%clk 0:01:05.7]} 110... Bd5 {[%clk 0:00:07.2]} 111. Qf4# {[%clk 0:01:04.6]}
1-0

[Event "*** Titled Tuesday Blitz"]
[Site "Chess.com"]
[Date "2019.03.05"]
[Round "5"]
[White "ChessWarrior7197"]
[Black "LukasHandler"]
[Result "1-0"]
[WhiteElo "2836"]
[BlackElo "2384"]
[TimeControl "180+2"]
[EndTime "14:05:19 PST"]
[Termination "ChessWarrior7197 won by resignation"]

1. e4 {[%clk 0:03:01.9]} 1... c5 {[%clk 0:03:00]} 2. Nf3 {[%clk 0:02:54.6]} 2...
d6 {[%clk 0:02:59.8]} 3. d4 {[%clk 0:02:54.5]} 3... cxd4 {[%clk 0:02:59.8]} 4.
Nxd4 {[%clk 0:02:56.4]} 4... Nf6 {[%clk 0:03:01]} 5. f3 {[%clk 0:02:57.3]} 5...
a6 {[%clk 0:03:01.8]} 6. c4 {[%clk 0:02:57.5]} 6... g6 {[%clk 0:02:57.8]} 7. Nc3
{[%clk 0:02:58.1]} 7... Bg7 {[%clk 0:02:58.5]} 8. Be3 {[%clk 0:02:59.3]} 8...
Nbd7 {[%clk 0:02:58.4]} 9. Be2 {[%clk 0:03:00.2]} 9... Qc7 {[%clk 0:02:55.8]}
10. O-O {[%clk 0:03:01.3]} 10... O-O {[%clk 0:02:56.9]} 11. Rc1 {[%clk
0:03:01.8]} 11... b6 {[%clk 0:02:56]} 12. Nd5 {[%clk 0:03:02.6]} 12... Qd8
{[%clk 0:02:51.8]} 13. Nc6 {[%clk 0:03:03.1]} 13... Qe8 {[%clk 0:02:48.3]} 14.
Nc7 {[%clk 0:03:04.4]} 1-0

[Event "*** Titled Tuesday Blitz"]
[Site "Chess.com"]
[Date "2019.03.05"]
[Round "5"]
[White "NoGalloNoParty"]
[Black "Poghosyan_Suren"]
[Result "0-1"]
[WhiteElo "2338"]
[BlackElo "2486"]
[TimeControl "180+2"]
[EndTime "14:08:24 PST"]
[Termination "Poghosyan_Suren won by resignation"]

1. Nf3 {[%clk 0:03:01.4]} 1... Nf6 {[%clk 0:03:00.2]} 2. c4 {[%clk 0:03:01.1]}
2... c5 {[%clk 0:02:52.9]} 3. g3 {[%clk 0:03:00.1]} 3... g6 {[%clk 0:02:53.2]}
4. b3 {[%clk 0:02:59.8]} 4... Bg7 {[%clk 0:02:55.1]} 5. Bb2 {[%clk 0:03:00.6]}
5... O-O {[%clk 0:02:56.4]} 6. Bg2 {[%clk 0:03:01.8]} 6... Nc6 {[%clk
0:02:55.4]} 7. O-O {[%clk 0:03:02.2]} 7... d6 {[%clk 0:02:56.4]} 8. Nc3 {[%clk
0:03:03]} 8... e5 {[%clk 0:02:56]} 9. d3 {[%clk 0:03:03]} 9... Nd4 {[%clk
0:02:56.1]} 10. e3 {[%clk 0:03:02.8]} 10... Nxf3+ {[%clk 0:02:54.6]} 11. Bxf3
{[%clk 0:03:03.5]} 11... Qe7 {[%clk 0:02:54.6]} 12. Bg2 {[%clk 0:03:03.1]} 12...
Bg4 {[%clk 0:02:54.6]} 13. Qd2 {[%clk 0:02:59.7]} 13... Qd7 {[%clk 0:02:55.1]}
14. Rfe1 {[%clk 0:02:59]} 14... Bh3 {[%clk 0:02:55.5]} 15. e4 {[%clk 0:02:45.7]}
15... h5 {[%clk 0:02:49.2]} 16. Nd5 {[%clk 0:02:42.9]} 16... Nxd5 {[%clk
0:02:49.7]} 17. cxd5 {[%clk 0:02:42.6]} 17... h4 {[%clk 0:02:47.8]} 18. Qg5
{[%clk 0:02:28.6]} 18... hxg3 {[%clk 0:02:45.8]} 19. hxg3 {[%clk 0:02:28.7]}
19... Qg4 {[%clk 0:02:33.8]} 20. Bc1 {[%clk 0:02:24.9]} 20... f5 {[%clk
0:02:25.9]} 21. Bxh3 {[%clk 0:02:00.6]} 21... Qxh3 {[%clk 0:02:26.3]} 22. Qxg6
{[%clk 0:02:01.3]} 22... Rf6 {[%clk 0:02:26.6]} 23. Qg5 {[%clk 0:01:58.2]} 23...
Rh6 {[%clk 0:02:26.3]} 0-1